Cogmind - Beta 15 @@@ ROGUE MODE // 2025.08.17 @ 17:49:49 Player: winnking222 Result: Destroyed by 4N-JAH(R) with Subdweller Machine Gun Performance ------------- Evolutions (0) 0 Regions Visited (3) 600 Robots Destroyed (37) 185 Value Destroyed (896) 896 Prototype IDs (11) 220 Alien Tech Used (0) 0 Bonus (14) 14 TOTAL SCORE: 1915 Bonus ------- Follower Combat Kills 14 Cogmind --------- Core Integrity 0/250 Matter 68/300 Energy 100/100 System Corruption 0% Temperature Cool (0) Movement Treading (320) Ox2 Location -10/Subcaves Parts ------- > --- POWER (1) -------- Subdweller Power Source > --- PROPULSION (2) --- Light Treads Light Treads > --- UTILITY (2) ------ Huge Storage Unit Hardened Light Armor Plating > --- WEAPON (2) ------- Improved Light Cannon Battle Cannon > --- INVENTORY (25) --- Meta Core Subdweller Monowheel Subdweller Monowheel Flight Unit Flight Unit Flight Unit Flight Unit Scrap Suit Improved Heat Sink Large Storage Unit High-capacity Matter Pod (200) Subdweller Optics Seismic Detector Hardened Light Armor Plating Hardened Light Armor Plating Hardened Light Armor Plating Scrap Shield Makeshift System Restoration Module Beam Rifle Beam Rifle Subdweller Laser Improved Light Cannon Subdweller Shrapnel Launcher Peak State ------------ > --- POWER ------------ Subdweller Power Source > --- PROPULSION ------- Light Treads Compact Wheel > --- UTILITY ---------- Huge Storage Unit Hardened Light Armor Plating > --- WEAPON ----------- Improved Light Cannon Improved Light Cannon > --- INVENTORY -------- Meta Core Light Treads Subdweller Monowheel Flight Unit Flight Unit Flight Unit Flight Unit Scrap Suit Improved Heat Sink Large Storage Unit High-capacity Matter Pod Subdweller Optics Seismic Detector Hardened Light Armor Plating Hardened Light Armor Plating Hardened Light Armor Plating Scrap Shield Makeshift System Restoration Module Beam Rifle Beam Rifle Subdweller Laser Battle Cannon Subdweller Shrapnel Launcher [Rating: 17] Favorites ----------- Power Ion Engine Engine Ion Engine Propulsion Light Treads Treads Light Treads Wheel Compact Wheel Utility Huge Storage Unit Device Seismic Detector Storage Huge Storage Unit Protection Hardened Light Armor Plating Weapon Improved Light Cannon Ballistic Gun Assault Rifle Ballistic Cannon Improved Light Cannon Build | -11 -10 -10 -10 ------- Run | Yrd Mat Min Sub Slots Evolved . | . . . . Power . | . . . . Propulsion . | . . . . Utility . | . . . . Weapon . | . . . . Parts Attached 22 | 7 5 2 8 Power 4 | 1 . 1 2 Engine 4 | 1 . 1 2 Core . | . . . . Reactor . | . . . . Propulsion 6 | 2 2 . 2 Treads 4 | 2 . . 2 Leg . | . . . . Wheel 2 | . 2 . . Hover . | . . . . Flight . | . . . . Utility 5 | 2 1 . 2 Device 1 | 1 . . . Storage 2 | 1 1 . . Processor . | . . . . Hackware . | . . . . Protection 2 | . . . 2 Artifact . | . . . . Weapon 7 | 2 2 1 2 Energy Gun . | . . . . Energy Cannon . | . . . . Ballistic Gun 2 | 2 . . . Ballistic Cannon 5 | . 2 1 2 Launcher . | . . . . Special Weapon . | . . . . Impact Weapon . | . . . . Slashing Weapon . | . . . . Piercing Weapon . | . . . . Special Melee Weapon . | . . . . Unidentified Prototypes . | . . . . Parts Lost 5 | . . 2 3 Power 2 | . . 1 1 Propulsion 1 | . . . 1 Utility . | . . . . Weapon 2 | . . 1 1 Highest Loss Streak 2 | . . 1 2 To Critical Strikes . | . . . . Average Backups 20 | 4 13 23 23 Power . | . 1 . . Propulsion 6 | 2 5 7 6 Utility 9 | . 4 11 11 Weapon 3 | 1 2 4 4 Tool/Special . | . . . . Unused Backups 32 | . 5 2 25 Power 1 | . 1 . . Propulsion 9 | . 3 . 6 Utility 15 | . . 2 13 Weapon 6 | . 1 . 5 Tool/Special 1 | . . . 1 Average Slot Usage (%) 99 | . 100 99 99 Engine 13 | . 14 13 13 Treads 16 | . 18 14 16 Wheel 11 | . 9 14 11 Device 10 | . 14 14 7 Storage 14 | . 14 14 14 Protection 3 | . . . 7 Ballistic Cannon 27 | . 24 27 27 Peak Build Rating 17 | 7 12 13 17 Average Rating 13 | 5 9 12 15 On Entrance 8 | . 7 12 13 Naked Turns . | . . . . Heaviest Build 98 | 15 94 94 98 Greatest Support 40 | 40 40 16 40 Greatest Overweight (x) 9 | . 9 5 6 Average Overweight (x) 4 | . 3 5 4 Largest Inventory Capacity 25 | 8 25 25 25 Average Capacity 23 | 7 19 25 25 Most Carried 25 | 7 25 25 25 Average Carried 21 | 4 13 23 24 Final Capacity 25 | 8 25 25 25 Final Carried 25 | 6 23 24 25 Class Distribution -------------------- 100% | Mutant Dominant Class ---------------- Mutant | -10/Materials Mutant | -10/Mines Mutant | -10/Subcaves Resources | -11 -10 -10 -10 ----------- Run | Yrd Mat Min Sub Matter Collected 1522 | 312 423 275 512 Remotely . | . . . . Salvage Created 796 | 81 367 94 254 Parts 64 | 16 29 8 11 Haulers Intercepted . | . . . . Recyclers Shooed 1 | 1 . . . Parts Field Recycled . | . . . . Retrieved Matter . | . . . . Parts Self-Destructed 13 | . . . 13 Prevented . | . . . . Kills | -11 -10 -10 -10 ------- Run | Yrd Mat Min Sub Combat Hostiles Destroyed 27 | . 13 5 9 Cannons 27 | . 13 5 9 Classes Destroyed 6 | 1 4 . 1 Tunneler 5 | 5 . . . Recycler 2 | . 2 . . Watcher 3 | . 3 . . Swarmer 10 | . 9 1 . Grunt 8 | . 4 4 . Subdweller 9 | . . . 9 Best Kill Streak 5 | 5 4 2 1 Combat Bots Only 3 | . 3 2 1 Max Kills in Single Turn 2 | 1 2 1 1 Gunslinging . | . . . . Exploded . | . . . . Melee . | . . . . Uniques/NPCs Destroyed . | . . . . Combat | -11 -10 -10 -10 -------- Run | Yrd Mat Min Sub Hostile Shots Fired 132 | . 50 25 57 Missed 32 | . 15 3 14 Hits 100 | . 35 22 43 Projectile 100 | . 35 22 43 Damage Taken 1537 | . 327 294 916 Core 270 | . 41 10 219 Absorbed by Shields . | . . . . Core Remaining (%) 100 | 100 . . . Volleys Fired 140 | 7 36 15 82 Largest 2 | 2 2 2 2 Hottest 66 | 40 66 66 66 Shots Fired 275 | 14 72 30 159 Gun 14 | 14 . . . Cannon 261 | . 72 30 159 Launcher . | . . . . Special . | . . . . Kinetic 275 | 14 72 30 159 Thermal . | . . . . Explosive . | . . . . Electromagnetic . | . . . . Robot Hit Streak 21 | 6 9 11 21 Robot Miss Streak 8 | 1 8 2 1 Penetration Max . | . . . . Secondary Targets . | . . . . Shots Hit Robots 140 | 10 30 20 80 Core Hits 55 | 6 19 7 23 Critical Kills . | . . . . Critical Parts Destroyed . | . . . . Critical Strikes 3 | . . . 3 Blast 3 | . . . 3 Melee Attacks . | . . . . Impact . | . . . . Slashing . | . . . . Piercing . | . . . . Sneak Attacks . | . . . . Combat Hostiles . | . . . . Follow-up Attacks . | . . . . Damage Inflicted 3046 | 129 692 421 1804 Guns 129 | 129 . . . Cannons 2917 | . 692 421 1804 Explosions . | . . . . Melee . | . . . . Ramming . | . . . . Kinetic 3046 | 129 692 421 1804 Thermal . | . . . . Explosive . | . . . . Electromagnetic . | . . . . Impact . | . . . . Slashing . | . . . . Piercing . | . . . . Highest Corruption . | . . . . Average Corruption . | . . . . Corruption Purged . | . . . . Corruption Blocked . | . . . . Overload Shots . | . . . . Overflow Damage 24 | . 15 9 . Projectiles 24 | . 15 9 . Explosions . | . . . . Melee . | . . . . Knockbacks 36 | . 7 6 23 Impact . | . . . . Kinetic 35 | . 7 6 22 Secondary 1 | . . . 1 Self-Inflicted Damage . | . . . . Shots . | . . . . Rammed . | . . . . Targets Rammed . | . . . . Kicked . | . . . . Crushed . | . . . . Highest Temperature 87 | . 87 69 . Average Temperature 21 | . 17 31 . Received Heat Transfer 381 | . 63 114 204 Siege Activations . | . . . . Martial Activations . | . . . . Shielding Activations . | . . . . Robots Disrupted . | . . . . Combat Hostiles . | . . . . Robots Corrupted . | . . . . Combat Hostiles . | . . . . Parts Fried . | . . . . Impact Corruptions . | . . . . Robots Melted . | . . . . Combat Hostiles . | . . . . Parts Melted . | . . . . Heat Transferred . | . . . . Parts Sabotaged . | . . . . Parts Stolen . | . . . . Parts Stripped . | . . . . Power Chain Reactions . | . . . . Alert | -11 -10 -10 -10 ------- Run | Yrd Mat Min Sub Maximum Alert Level . | . . . . Low Security (%) 100 | 100 100 100 . Level 1 . | . . . . Level 2 . | . . . . Level 3 . | . . . . Level 4 . | . . . . Level 5 . | . . . . High Security . | . . . . Max Security . | . . . . Peak Influence 98 | 15 98 78 . Initial . | . . . . Average 16 | 3 25 8 . Influence Increases 605 | 25 385 195 . Destroy 0b10 Robot/C 400 | . 260 140 . Destroy 0b10 Robot/NC 50 | 25 25 . . Destroy Leader 76 | . 46 30 . Allied During Kill 9 | . . 9 . Successful Hack 14 | . 14 . . Disable Machine 45 | . 30 15 . Destroy Structure 11 | . 10 1 . Influence Decreases 605 | 25 385 195 . Time Decay 565 | 25 385 155 . Lost Part 20 | . . 20 . Lost Ally 20 | . . 20 . Squads Dispatched . | . . . . Investigation . | . . . . Extermination . | . . . . Reinforcement . | . . . . Assault . | . . . . Garrison . | . . . . Intercept . | . . . . Searches Triggered . | . . . . Construction Impeded . | . . . . Haulers Reinforced . | . . . . Active Scanning Responses . | . . . . Cargo Convoy Interrupts . | . . . . Stealth | -11 -10 -10 -10 --------- Run | Yrd Mat Min Sub Distress Signals 2 | . 2 . . Communications Jammed . | . . . . Distress Signals . | . . . . Times Spotted 36 | . 19 7 10 Peak Tracking Total 4 | . 4 3 2 Tactical Retreats . | . . . . Traps | -11 -10 -10 -10 ------- Run | Yrd Mat Min Sub Traps Triggered . | . . . . Indirectly . | . . . . Trap Hack Attempts . | . . . . Triggered . | . . . . Disarmed . | . . . . Reprogrammed . | . . . . Reused . | . . . . Traps Extracted . | . . . . Installed . | . . . . Triggered . | . . . . Machines | -11 -10 -10 -10 ---------- Run | Yrd Mat Min Sub Machines Disabled 4 | . 2 1 1 Max in Single Turn 1 | . 1 . 1 Machines Repaired . | . . . . Machines Dismantled . | . . . . Machines Sabotaged . | . . . . Overloaded Fab Kills . | . . . . Hacking | -11 -10 -10 -10 --------- Run | Yrd Mat Min Sub Machines Accessed 8 | . 6 . 2 Terminals 5 | . 5 . . Fabricators . | . . . . Repair Stations . | . . . . Recycling Units 1 | . 1 . . Scanalyzers . | . . . . Garrison Access . | . . . . Total Hacks 19 | . 13 . 6 Successful 18 | . 12 . 6 Failed 1 | . 1 . . Catastrophic . | . . . . Database Lockouts . | . . . . Manual 10 | . 10 . . Terminals 11 | . 11 . . Fabricators . | . . . . Repair Stations . | . . . . Recycling Units 2 | . 2 . . Scanalyzers . | . . . . Garrison Access . | . . . . Terminal Hacks 8 | . 2 . 6 Record 5 | . . . 5 Hauler Manifests 1 | . 1 . . Zone Layout 1 | . 1 . . Proto ID Catalog 1 | . . . 1 Fabricator Hacks . | . . . . Repair Station Hacks . | . . . . Recycling Unit Hacks 1 | . 1 . . Report Inventory 1 | . 1 . . Scanalyzer . | . . . . Garrison Access Hacks . | . . . . Unauthorized Hacks 8 | . 8 . . Terminals 8 | . 8 . . Botnet 3 | . 3 . . Skim 5 | . 5 . . Fabricators . | . . . . Repair Stations . | . . . . Recycling Units . | . . . . Scanalyzers . | . . . . Garrison Access . | . . . . Data Cores Recovered . | . . . . Used . | . . . . Hacking Detections 3 | . 3 . . Full Trace Events . | . . . . Feedback Events . | . . . . Feedback Blocked . | . . . . Robot Schematics Acquired . | . . . . Robots Built . | . . . . Authchips . | . . . . Time . | . . . . Total Robot Build Rating . | . . . . Part Schematics Acquired . | . . . . Parts Built . | . . . . Authchips . | . . . . Time . | . . . . Total Part Build Rating . | . . . . Parts Repaired . | . . . . Time . | . . . . Parts Recycled . | . . . . Recycled Matter . | . . . . Retrieved Matter . | . . . . Retrieved Components . | . . . . Parts Scanalyzed . | . . . . Part Schematics Acquired . | . . . . Parts Damaged . | . . . . Bothacking | -11 -10 -10 -10 ------------ Run | Yrd Mat Min Sub Used RIF Installer . | . . . . Robots Hacked . | . . . . Non-combat . | . . . . Combat . | . . . . Robot Hacks Applied . | . . . . Relay Couplers Released . | . . . . Fabnet Peak Effective % . | . . . . Robots Rewired . | . . . . Allies Hacked . | . . . . Hacks Repelled . | . . . . Allies | -11 -10 -10 -10 -------- Run | Yrd Mat Min Sub Total Allies 2 | . . 2 . Largest Group 2 | . . 2 . Highest-Rated Group 35 | . . 35 . Highest-Rated Ally 31 | . . 31 . Total Orders . | . . . . Ally Attacks 7 | . . 7 . Total Damage 179 | . . 179 . Kills 3 | . . 3 . Allies Corrupted . | . . . . Allies Melted . | . . . . Intel | -11 -10 -10 -10 ------- Run | Yrd Mat Min Sub Active Infowar (turns) 6008 | 24 1841 1922 2221 Seismic 6008 | 24 1841 1922 2221 Robot Analysis Total . | . . . . Derelict Logs Recovered 3 | . . 1 2 Drone Launches . | . . . . Drone Recoveries . | . . . . Exploration | -11 -10 -10 -10 ------------- Run | Yrd Mat Min Sub Turns Passed 8320 | 114 1841 1922 4443 Spaces Moved 3417 | 51 757 706 1903 Core 13 | 13 . . . Treads 664 | 38 351 . 275 Legs . | . . . . Wheels 2740 | . 406 706 1628 Hover . | . . . . Flight . | . . . . Fastest Speed 50 | 50 160 175 175 Average Speed 189 | 131 181 175 199 Slowest Speed 320 | 160 320 175 320 Overloaded Moves . | . . . . Propulsion Burnouts . | . . . . Robots Hopped . | . . . . Potential Cave-ins . | . . . . Cave-ins Triggered . | . . . . Exploration Rate (%) 70 | 4 93 100 86 Regions Visited 3 Branch Regions 2 Pre-discovered Areas 5 | . 1 2 2 Known Exits Taken 1 | . . 1 . Unknown Exits Taken 2 | 1 1 . . Scrap Searched 1 | . . 1 . Spaces Dug . | . . . . Terrain Destroyed 14 | . 9 5 . Melee . | . . . . Projectile 14 | . 9 5 . AOE . | . . . . Terrain Rammed . | . . . . Walls Destroyed . | . . . . Machines Disabled . | . . . . Actions | -11 -10 -10 -10 --------- Run | Yrd Mat Min Sub Total 4998 | 82 1157 1364 2395 Wait 1351 | 8 326 636 381 Move 3414 | 50 756 705 1903 Hop . | . . . . Pick Up 49 | 10 25 4 10 Fast Attach 3 | 3 . . . Attach 9 | 4 . 2 3 Detach . | . . . . Swap 13 | . 5 . 8 Drop 19 | . 9 2 8 Fire 140 | 7 36 15 82 Melee . | . . . . Ram . | . . . . Kick . | . . . . Crush . | . . . . Escape Stasis . | . . . . Rewire . | . . . . Trap . | . . . . Miscellaneous . | . . . . Route ------- -11/Scrapyard -10/Materials (discovered 5 exits: *Mat x3 / [*Min] / Sub) -10/Mines (discovered 3 exits: *Mat x2 / *Sub) -10/Subcaves (discovered 3 exits: [*Mat x2] / Rec) History --------- Turn | Location | Event 10 | -11/Scrapyard | Discovered new exit (range 15) 115 | -11/Scrapyard | Entered Materials 304 | -10/Materials | Build established: Mutant 493 | -10/Materials | Discovered new exit (range 6) 722 | -10/Materials | Discovered new exit (range 8) 1025 | -10/Materials | Discovered new exit (range 12) 1343 | -10/Materials | Identified exit to Materials 1423 | -10/Materials | Learned location of 1 exit from Storage 1495 | -10/Materials | Learned Storage trap positions 1558 | -10/Materials | Identified exit to Subcaves 1654 | -10/Materials | Learned 4 Recycling zone layouts 1687 | -10/Materials | Learned Storage garrison access intel 1789 | -10/Materials | Learned location of 2 exits from Materials 1858 | -10/Materials | Loaded intel: 7 trap records 1938 | -10/Materials | Learned location of Subcaves (-10) 1956 | -10/Materials | Entered Mines 2003 | -10/Mines | Met a Derelict bent on vengeance 2569 | -10/Mines | Learned location of Zion (-7) 2595 | -10/Mines | Discovered exit to Materials (range 15) 2703 | -10/Mines | A weapon hastily lodged in a ceiling crevice suddenly fell to the ground 2800 | -10/Mines | Found a Scrap Suit stashed away for nefarious purposes 2803 | -10/Mines | Found Scrap Suit 3451 | -10/Mines | Learned location of Storage (-9) 3487 | -10/Mines | Discovered exit to Subcaves (range 5) 3878 | -10/Mines | Entered Subcaves 4319 | -10/Subcaves | Visited 4L-MR0's lab 4337 | -10/Subcaves | Found Meta Core 4866 | -10/Subcaves | Discovered new exit (range 12) 6040 | -10/Subcaves | Core integrity fell below 50% 6498 | -10/Subcaves | Shifting Twisted Machinery released Mak. Leg 6509 | -10/Subcaves | Discovered new exit (range 9) 6510 | -10/Subcaves | Shifting Twisted Machinery released Sub. Power Source 6690 | -10/Subcaves | Learned location of Recycling (-9) 6700 | -10/Subcaves | Visited Clippyterm 6706 | -10/Subcaves | Identified exit to Recycling 6706 | -10/Subcaves | Learned location of Section 7 (-3) 6760 | -10/Subcaves | Shifting Twisted Machinery released Battle Cannon 6766 | -10/Subcaves | Shifting Twisted Machinery released Sub. Monowheel 7320 | -10/Subcaves | Shifting Twisted Machinery released Battle Rifle 8305 | -10/Subcaves | Core integrity fell below 20% 8321 | -10/Subcaves | Destroyed by 4N-JAH(R) with Subdweller Machine Gun Last Messages --------------- 07358_ VQ-EVL(R) knocked back. 07364_ VQ-EVL(R) destroyed. 07368_ Acquired 7 matter. 07370_ Acquired 25 matter. 07377_ Acquired 4 matter. 07407_ 67-G42(R) knocked back. 07407_ Com. Wheel destroyed. 07414_ 67-G42(R) destroyed. 07419_ Subatomizers dissect the Sub. Monowheel. 07427_ Acquired Sub. Monowheel. 07428_ Acquired 41 matter. 07432_ Subatomizers dissect the Sub. Optics. 07434_ Acquired 2 matter. 07440_ Acquired 5 matter. 07443_ Subatomizers dissect the Sub. Optics. 07547_ Acquired derelict log, extracted data. Exit location confirmed. 08308_ 4N-JAH(R) knocked back. 08314_ 4N-JAH(R) Sub. Monowheel blasted off. 08314_ 4N-JAH(R) knocked back. Map ----- +----------------------------------------------------+ | | | | | | | | | | | | | | | | | ?????????????????????????????????????????????????? | | ?????????????????????????????????????????????????? | | ?????????????????????????????????????????????????? | | ?????????????????????????????????????????????????? | | ?????????????????????????????????????????????????? | | ?????????????????????????????????????????????????? | | ?????????????????????????????????????????????????? | | ?????????????????????????????????????????????????? | | ?????????????????????????????????????????????????? | | ?????????????????????????????????????????????????? | | ?????????????????????????????????????????????????? | | ?????????????????????????????????????????????????? | | ?????????????????????????????????????????????????? | | ?????????????????????????????????????????????????? | | ?######?????#######????????####??????????????????? | | ## ##???## ########? #??????????????????? | | # #???# # ## ### ##### ###???????????? | | ## #???# @#" " % #???????????? | | ### ##???## % #???????????? | | ### ##?????# #### ### ####????????????? | | ## #??????## ##?###?## % #???????????????? | | ## #???????## #####??# =R ##?##????????????? | | ## ####?????# ## ##?# % #?# ??????????? | | ## ##???## #?# % ## ?????????? | | #### #??## ### ????"?????? | | #?## #??# ### % #??? %????? | | ### #??### ### ## # # #?## ?????? | | ##????# #?#### ## ## ?? ?? | | #?????# ### #?? ?? | | #?????#### % ### ?? | | # ##????????## ?? | | ## ########???????# ### ??? | | ?###??## #??????## ### ????? | | ??????# #????### #??????? | | ?????## ####### #??????? | | ?????# ### #??????? | | ?##### ## ### #??????? | | ## ####### #### ## ##??????? | | # ### ##? ######?## ## ##???????? | | ##### ### #?????# #### #????????? | | ###??# #?????# #??## ##????????? | | ## #???# ##?????# #???## ##???????>?? | +----------------------------------------------------+ Best States ------------- Heat Dissipation 25 Energy Generation 15 Energy Capacity 250 Matter Stores 300 Matter Capacity 300 Sight Range 16 Terrain Scan Density 10 Armor Coverage 150 Evasion (%) 50 Recoil Reduction 2 Item Schematics ----------------- None Robot Schematics ------------------ None Fabricated ------------ Nothing Repaired ---------- Nothing Alien Tech Used ----------------- None Achievements -------------- None Challenges ------------ None Game ------ Seed VortexChainInitializer Manual? 0 Play Time 00:27:28 Cumulative 139.5 hours Start 2025.08.17 @ 17:07:18 End 2025.08.17 @ 17:49:49 Sessions 1 Manual Loads 0 Difficulty Rogue Special Mode None Game No. 197 Rogue 197 Adventurer 0 Explorer 0 Win Type - Total 1 Types 1/0/0/0/0/0/0/0/0/0 Lore% 69 Gallery% 63 Achievement% 53 Wizard Run 0 Options --------- Layout 0 ASCII 0 Keyboard 0 Movement Mouse Keybinds 0 Fullscreen 1 Font 16/SmallcapsGlow Map View 75x55 Zoom Use 0% Tactical HUD 1 Map Filters NONE Filters NONE Steam 1 RUN: 3d9f2f82-a024-4fa3-b5b1-97d30fd26b9d